fUST/lending_fUST_20251106
["ID","MTS","AMOUNT","RATE_DAILY","PERIOD"]
[393299668,1762434647343,-1266.973594,0.0002389,7]
[393299669,1762434647355,-1266.973594,0.0002389,7]
[393299670,1762434647367,-1266.973594,0.0002389,7]
[393299671,1762434647378,-154.430382,0.0002389,7]
[393299672,1762434647389,-156.27948,0.0002389,7]
[393299673,1762434647404,-43968.01742826,0.0002389,2]
[393299674,1762434647420,-12276.4247681,0.0002389,2]
[393299675,1762434862366,571.93174031,0.000181,5]
[393299676,1762434901410,100057.16699256,0.00037267,30]
[393299678,1762435085934,278.300071,0.00013699,2]
[393299680,1762435266118,312.87,0.00018,10]
[393299681,1762435517553,4000.0,0.00032,120]
[393299685,1762435556126,-150.0,0.00015576,2]
[393299686,1762435556150,-150.0,0.00015733,2]
[393299687,1762435556173,-150.0,0.00017163,2]
[393299688,1762435556193,-150.0,0.00017264,2]
[393299689,1762435556213,-218.0,0.00017351,2]
[393299690,1762435556236,-177.0,0.00019264,2]
[393299691,1762435556256,-278.300071,0.00020187,2]
[393299692,1762435556278,-27.60636438,0.00021264,2]
[393299696,1762435642980,1142075.2657769,0.0003726,20]
[393299725,1762435748106,-150.0,0.00019148,15]
[393299726,1762435748126,-216.73118731,0.0002,2]
[393299727,1762435749093,-24.23219478,0.0002,2]
[393299728,1762435749113,-1023.39563823,0.00021051,3]
[393299729,1762435749134,-80.35216699,0.00021157,2]
[393299730,1762435759180,-150.0,0.00019148,15]
[393299731,1762435759200,-27.97778985,0.00021157,2]
[393299732,1762435790359,2301.66010004,0.00032876,120]
[393299764,1762435831770,-317.0,0.00021157,2]
[393299765,1762435831780,-41.67004316,0.00021157,2]
[393299766,1762435831793,-540.4209371,0.00022472,2]
[393299767,1762435831804,-177.0,0.00023157,2]
[393299768,1762435831813,-58.33901974,0.00023216,2]
[393299769,1762435831829,-166.0958671,0.00023216,2]
[393299770,1762435831840,-172.99,0.00023314,3]
[393299771,1762435831849,-184.07515999,0.00023314,3]
[393299772,1762435831858,-624.02569517,0.00023509,2]
[393299773,1762435831872,-974.63569173,0.00023509,2]
[393299774,1762435831881,-175.71930827,0.00023699,2]
[393299775,1762435831892,-1024.28069173,0.00023699,2]
[393299776,1762435831901,-840.19566939,0.000237,2]
[393299791,1762435837691,-359.02705364,0.000237,2]
[393299793,1762435837703,-1048.83179575,0.000237,2]
[393299795,1762435837712,-102.25916635,0.000237,2]
[393300019,1762435843975,-504.08258608,0.000237,2]
[393300020,1762435843985,-227.54450664,0.00023779,2]
[393300021,1762435843995,-850.6,0.0002378,3]
[393300022,1762435844004,-3599.48793787,0.0002378,2]
[393300028,1762435846269,-5146.0,0.0002378,2]
[393300029,1762435846280,-496.02079617,0.0002378,2]
[393300035,1762436745140,-150.0,0.00015961,2]
[393300036,1762436745164,-150.0,0.00017412,2]
[393300037,1762436745184,-226.653695,0.00022816,2]
[393300038,1762436745204,-373.0,0.00022816,2]
[393300039,1762436745224,-150.0,0.00022927,2]
[393300040,1762436745244,-172.99,0.00023314,3]
[393300041,1762436745264,-530.54903342,0.00023689,2]
[393300042,1762436745288,-742.72037166,0.000237,2]
[393300043,1762436745309,-160.0,0.00023778,2]
[393300044,1762436745331,-95.93754685,0.0002378,10]
[393300045,1762436843118,-172.99,0.00023216,3]
[393300046,1762436843143,-605.6366604,0.00023661,12]
[393300047,1762436843169,-3.51489761,0.0002368,10]
[393300048,1762436936805,-4877524.11817652,0.00037261,20]
[393300049,1762436936845,-510.00555414,0.00037261,60]
[393300050,1762436936883,-5000.0,0.00037261,120]
[393300051,1762436936917,-500.0,0.00037261,60]
[393300052,1762436936950,-509.89871803,0.00037261,60]
[393300053,1762436936983,-5000.0,0.00037261,120]
[393300054,1762436937014,-5000.0,0.00037261,120]
[393300055,1762436937046,-5000.0,0.00037261,120]
[393300056,1762436937076,-5000.0,0.00037261,120]
[393300057,1762436937109,-5000.0,0.00037261,120]
[393300058,1762436937140,-5000.0,0.00037261,120]
[393300059,1762436937173,-5000.0,0.00037261,120]
[393300060,1762436937203,-5000.0,0.00037261,120]
[393300061,1762436937233,-1300.0,0.00037261,120]
[393300062,1762436937262,-500.0,0.00037261,60]
[393300063,1762436937291,-500.0,0.00037261,60]
[393300064,1762436937320,-500.0,0.00037261,60]
[393300065,1762436937349,-500.0,0.00037261,60]
[393300066,1762436937378,-500.0,0.00037261,60]
[393300067,1762436937407,-500.0,0.00037261,60]
[393300068,1762436937436,-500.0,0.00037261,60]
[393300069,1762436937467,-500.0,0.00037261,60]
[393300070,1762436937495,-500.0,0.00037261,60]
[393300071,1762436937525,-500.0,0.00037261,60]
[393300072,1762436937554,-500.0,0.00037261,60]
[393300073,1762436937583,-500.0,0.00037261,60]
[393300074,1762436937611,-500.0,0.00037261,60]
[393300075,1762436937639,-500.0,0.00037261,60]
[393300076,1762436937667,-500.0,0.00037261,60]
[393300077,1762436937695,-500.0,0.00037261,120]
[393300078,1762436937723,-500.0,0.00037261,120]
[393300079,1762436937753,-500.0,0.00037261,120]
[393300080,1762436937782,-506.93102073,0.00037261,120]
[393300146,1762437014938,-298.21806902,0.00026016,56]
[393300147,1762437014977,-298.21806901,0.00026586,30]
[393300148,1762437015012,-155.947575,0.00027397,31]
[393300149,1762437015049,-155.947575,0.00027397,31]
[393300150,1762437015083,-155.947575,0.00027397,31]
[393300151,1762437015117,-155.947575,0.00027397,31]
[393300152,1762437015151,-155.947575,0.00027397,31]
[393300153,1762437015185,-155.947575,0.00027397,31]
[393300154,1762437015219,-155.947575,0.00027397,31]
[393300155,1762437015252,-155.947575,0.00027397,31]
[393300156,1762437015285,-155.947575,0.00027397,31]
[393300157,1762437015318,-155.947575,0.00027397,31]
[393300158,1762437015350,-155.947575,0.00027397,31]
[393300159,1762437015382,-155.947575,0.00027397,31]
[393300160,1762437015415,-155.947575,0.00027397,31]
[393300161,1762437015446,-155.947575,0.00027397,31]
[393300162,1762437015479,-155.947575,0.00027397,31]
[393300163,1762437015511,-155.947575,0.00027397,31]
[393300164,1762437015547,-155.947575,0.00027397,31]
[393300165,1762437015579,-155.947575,0.00027397,31]
[393300166,1762437015613,-155.947575,0.00027397,31]
[393300167,1762437015646,-155.947573,0.00027397,31]
[393300168,1762437015681,-304.76249998,0.00029096,32]
[393300169,1762437015715,-160.0,0.0002986,30]
[393300170,1762437015748,-311.0,0.0003,45]
[393300171,1762437015780,-246.0715473,0.00030037,32]
[393300172,1762437015815,-266.9811199,0.0003013,30]
[393300173,1762437015848,-246.0715473,0.00030214,40]
[393300174,1762437015882,-246.0715473,0.0003039,48]
[393300175,1762437015916,-246.0715473,0.00030567,56]
[393300176,1762437016078,-208.0,0.0003074,42]
[393300177,1762437016116,-246.0715473,0.00030743,63]
[393300178,1762437016148,-246.0715473,0.0003092,71]
[393300179,1762437016183,-246.0715473,0.00031096,79]
[393300180,1762437016216,-246.0715473,0.00031272,86]
[393300181,1762437016248,-246.0715473,0.00031449,94]
[393300182,1762437016280,-246.0715473,0.00031625,102]
[393300183,1762437016312,-151.0,0.00032877,31]
[393300184,1762437016342,-151.0,0.00032877,31]
[393300185,1762437016374,-151.0,0.00032877,31]
[393300186,1762437016407,-151.0,0.00032877,31]
[393300187,1762437016438,-151.0,0.00032877,31]
[393300188,1762437016470,-161.912584,0.00032877,31]
[393300189,1762437016502,-151.0,0.00032877,31]
[393300190,1762437016532,-151.0,0.00032877,31]
[393300191,1762437016563,-151.0,0.00032877,31]
[393300192,1762437016594,-151.0,0.00032877,31]
[393300193,1762437016626,-151.0,0.00032877,31]
[393300194,1762437016658,-151.0,0.00032877,31]
[393300195,1762437016690,-151.0,0.00032877,31]
[393300196,1762437016721,-151.0,0.00032877,31]
[393300197,1762437016752,-151.0,0.00032877,31]
[393300198,1762437016784,-165.940648,0.00032877,31]
[393300199,1762437016815,-215.29047937,0.00032877,30]
[393300200,1762437016846,-159.0,0.00032932,57]
[393300201,1762437016879,-249.17728798,0.000332,117]
[393300202,1762437016910,-381.16955859,0.00034,120]
[393300203,1762437016941,-394.3946295,0.00034171,30]
[393300204,1762437016972,-394.3946295,0.00034171,30]
[393300205,1762437017004,-394.3946295,0.00034171,30]
[393300206,1762437017037,-394.3946295,0.00034171,30]
[393300207,1762437017068,-394.3946295,0.00034171,30]
[393300208,1762437017102,-440.6949532,0.00034171,30]
[393300209,1762437017142,-153.26,0.00034405,60]
[393300210,1762437017177,-523.356488,0.00034453,60]
[393300211,1762437017217,-153.26,0.00034505,60]
[393300212,1762437017252,-157.5966314,0.00034526,60]
[393300213,1762437017285,-157.50392746,0.00034526,60]
[393300214,1762437017334,-166.59,0.00034536,60]
[393300215,1762437017371,-153.26,0.00034605,60]
[393300216,1762437017408,-166.59,0.00034636,60]
[393300217,1762437017444,-153.26,0.00034705,60]
[393300218,1762437017481,-166.59,0.00034736,60]
[393300219,1762437017518,-153.26,0.00034805,60]
[393300220,1762437017552,-166.59,0.00034836,60]
[393300221,1762437017585,-153.26,0.00034905,60]
[393300222,1762437017618,-166.59,0.00034936,60]
[393300223,1762437017652,-523.356488,0.0003497,60]
[393300224,1762437017683,-153.0,0.00035,120]
[393300225,1762437017714,-267.50289512,0.00035,120]
[393300226,1762437017749,-441.899999,0.00035,120]
[393300227,1762437017782,-153.26,0.00035005,60]
[393300228,1762437017816,-166.59,0.00035036,60]
[393300229,1762437017860,-153.26,0.00035105,60]
[393300230,1762437017903,-171.0,0.00035123,75]
[393300231,1762437017945,-153.26,0.00035205,60]
[393300232,1762437017981,-201.0,0.0003521,40]
[393300233,1762437018021,-153.26,0.00035305,60]
[393300234,1762437018059,-153.26,0.00035405,60]
[393300235,1762437018101,-523.356488,0.00035487,60]
[393300236,1762437018145,-153.26,0.00035505,60]
[393300237,1762437018183,-200.0,0.00035557,120]
[393300238,1762437018224,-153.26,0.00035605,60]
[393300239,1762437018261,-151.0,0.00035616,31]
[393300240,1762437018298,-151.0,0.00035616,31]
[393300241,1762437018336,-151.0,0.00035616,31]
[393300242,1762437018371,-248.032772,0.00035616,31]
[393300243,1762437018409,-153.26,0.00035705,60]
[393300244,1762437018448,-153.26,0.00035805,60]
[393300245,1762437018483,-187.09924609,0.0003589,30]
[393300246,1762437018519,-153.26,0.00035905,60]
[393300247,1762437018551,-200.0,0.00035955,120]
[393300248,1762437018585,-523.356488,0.00036,30]
[393300249,1762437018618,-523.356488,0.00036004,60]
[393300250,1762437018654,-153.26,0.00036005,60]
[393300251,1762437018688,-187.09924609,0.00036055,30]
[393300252,1762437018723,-523.356488,0.00036065,30]
[393300253,1762437018759,-153.26,0.00036105,60]
[393300254,1762437018795,-523.356488,0.0003613,30]
[393300255,1762437018828,-200.0,0.00036133,120]
[393300256,1762437018860,-523.356488,0.00036195,30]
[393300257,1762437018894,-153.26,0.00036205,60]
[393300258,1762437018929,-187.09924609,0.00036247,30]
[393300259,1762437018965,-523.356488,0.0003626,30]
[393300260,1762437019001,-249.17728794,0.00036285,120]
[393300261,1762437019037,-153.26,0.00036305,60]
[393300262,1762437019072,-153.26,0.00036405,60]
[393300263,1762437019111,-187.09924609,0.00036411,30]
[393300264,1762437019146,-153.26,0.00036505,60]
[393300265,1762437019191,-523.356488,0.00036521,60]
[393300266,1762437019226,-187.09924609,0.00036575,30]
[393300267,1762437019262,-200.0,0.00036581,120]
[393300268,1762437019299,-200.0,0.00036593,120]
[393300269,1762437019338,-4067.90121888,0.00036598,54]
[393300270,1762437019375,-153.26,0.00036605,60]
[393300271,1762437019411,-153.0,0.000367,120]
[393300272,1762437019449,-153.26,0.00036705,60]
[393300273,1762437019486,-187.09924609,0.00036767,30]
[393300274,1762437019523,-153.33,0.00036805,60]
[393300275,1762437019558,-187.09924609,0.00036932,30]
[393300276,1762437019595,-200.0,0.00036958,120]
[393300277,1762437019629,-369.0,0.00037,120]
[393300278,1762437019666,-1000.0,0.00037,120]
[393300279,1762437019702,-500.0,0.00037,120]
[393300280,1762437019735,-3000.0,0.00037,30]
[393300281,1762437019904,-399.6403651,0.00037,30]
[393300282,1762437019949,-187.09924609,0.00037096,30]
[393300283,1762437019984,-200.0,0.00037184,120]
[393300284,1762437020019,-228.45356883,0.000372,120]
[393300285,1762437020054,-10159.53005088,0.000372,120]
[393300286,1762437020086,-221.77575364,0.000372,120]
[393300287,1762437020117,-201.95078226,0.000372,120]
[393300288,1762437020149,-239.46543626,0.000372,120]
[393300289,1762437020182,-180.76307225,0.000372,120]
[393300290,1762437020214,-163.42950572,0.000372,120]
[393300291,1762437020256,-380.47494993,0.000372,120]
[393300292,1762437020288,-190.20205685,0.000372,120]
[393300293,1762437020320,-176.77246861,0.000372,120]
[393300294,1762437020351,-174.75799927,0.000372,120]
[393300295,1762437020383,-176.2550529,0.000372,120]
[393300296,1762437020416,-171.66421044,0.000372,120]
[393300297,1762437020449,-169.41325414,0.000372,120]
[393300298,1762437020482,-161.0,0.000372,60]
[393300299,1762437020513,-150.0,0.000372,107]
[393300300,1762437020565,-187.09924609,0.00037288,30]
[393300301,1762437020597,-150.61068043,0.000373,60]
[393300302,1762437020629,-168.89781764,0.00037441,60]
[393300303,1762437020663,-187.09924609,0.00037452,30]
[393300304,1762437020705,-200.0,0.00037467,120]
[393300305,1762437020737,-200.0,0.00037596,120]
[393300306,1762437020769,-201.0,0.000376,47]
[393300307,1762437020804,-187.09924609,0.00037616,30]
[393300308,1762437020838,-187.09924609,0.00037808,30]
[393300309,1762437020870,-200.0,0.00037901,120]
[393300310,1762437020904,-200.0,0.00037927,120]
[393300311,1762437020935,-399.6403651,0.00038,120]
[393300312,1762437020967,-228.45356883,0.000383,120]
[393300313,1762437021002,-10159.53005088,0.000383,120]
[393300314,1762437021036,-239.46543626,0.000383,120]
[393300315,1762437021069,-180.76307225,0.000383,120]
[393300316,1762437021101,-163.42950572,0.000383,120]
[393300317,1762437021136,-380.47494993,0.000383,120]
[393300318,1762437021168,-190.20205685,0.000383,120]
[393300319,1762437021203,-176.77246861,0.000383,120]
[393300320,1762437021234,-174.75799927,0.000383,120]
[393300321,1762437021266,-176.2550529,0.000383,120]
[393300322,1762437021298,-171.66421044,0.000383,120]
[393300323,1762437021330,-153.0,0.000384,120]
[393300324,1762437021362,-156.0,0.00038411,112]
[393300325,1762437021394,-200.0,0.00038577,120]
[393300326,1762437021424,-246.63629518,0.00039,120]
[393300327,1762437021455,-200.0,0.00039084,120]
[393300328,1762437021485,-200.0,0.000391,120]
[393300329,1762437021515,-228.45356883,0.000395,120]
[393300330,1762437021546,-10159.53005088,0.000395,120]
[393300331,1762437021576,-180.76307225,0.000395,120]
[393300332,1762437021610,-163.42950572,0.000395,120]
[393300333,1762437021644,-380.47494993,0.000395,120]
[393300334,1762437021675,-190.20205685,0.000395,120]
[393300335,1762437021704,-176.77246861,0.000395,120]
[393300336,1762437021734,-176.2550529,0.000395,120]
[393300337,1762437021765,-171.66421044,0.000395,120]
[393300338,1762437021796,-200.0,0.00039625,120]
[393300339,1762437021828,-200.0,0.0003969,120]
[393300340,1762437021859,-200.0,0.00039729,120]
[393300341,1762437021892,-200.0,0.00039838,120]
[393300342,1762437021922,-531.24,0.00039925,120]
[393300343,1762437021953,-200.0,0.00039955,120]
[393300344,1762437021983,-201.0,0.0003999,53]
[393300345,1762437022015,-371.65602751,0.00039999,31]
[393300346,1762437022047,-399.75987795,0.00039999,31]
[393300347,1762437022079,-1012.0,0.0004,120]
[393300348,1762437022115,-322.1527355,0.0004,120]
[393300349,1762437022149,-153.0,0.0004,120]
[393300350,1762437022183,-400.0,0.0004,120]
[393300351,1762437022220,-399.6403651,0.0004,120]
[393300352,1762437022255,-200.0,0.00040142,120]
[393300353,1762437022295,-10000.0,0.000403,30]
[393300354,1762437022332,-200.0,0.00040304,120]
[393300355,1762437022369,-228.45356883,0.000406,120]
[393300356,1762437022407,-10159.53005088,0.000406,120]
[393300357,1762437022443,-180.76307225,0.000406,120]
[393300358,1762437022479,-163.42950572,0.000406,120]
[393300359,1762437022512,-380.47494993,0.000406,120]
[393300360,1762437022549,-190.20205685,0.000406,120]
[393300361,1762437022581,-176.77246861,0.000406,120]
[393300362,1762437022612,-176.2550529,0.000406,120]
[393300363,1762437022644,-171.66421044,0.000406,120]
[393300364,1762437022678,-200.0,0.00040991,120]
[393300365,1762437022710,-315.85900914,0.00040999,120]
[393300366,1762437022830,-1000.0,0.00041095,90]
[393300367,1762437022864,-1000.0,0.00041095,90]
[393300368,1762437022897,-1000.0,0.00041095,90]
[393300369,1762437022928,-1000.0,0.00041095,90]
[393300370,1762437022959,-1000.0,0.00041095,90]
[393300371,1762437022989,-1000.0,0.00041095,90]
[393300372,1762437023021,-1000.0,0.00041095,90]
[393300373,1762437023054,-1000.0,0.00041095,90]
[393300374,1762437023087,-1000.0,0.00041095,90]
[393300375,1762437023121,-272.92826551,0.00041095,90]
[393300376,1762437023156,-166.75,0.00041096,120]
[393300377,1762437023191,-500.0,0.00041096,30]
[393300378,1762437023225,-219.36,0.000411,120]
[393300379,1762437023261,-200.0,0.00041116,120]
[393300380,1762437023298,-166.59,0.00041181,120]
[393300381,1762437023333,-200.0,0.00041276,120]
[393300382,1762437023369,-166.59,0.00041281,120]
[393300383,1762437023404,-335.6868,0.000413,120]
[393300384,1762437023440,-272.68407,0.000413,120]
[393300385,1762437023475,-10000.0,0.000413,30]
[393300386,1762437023511,-200.0,0.00041359,120]
[393300387,1762437023552,-166.59,0.00041381,120]
[393300388,1762437023590,-166.59,0.00041481,120]
[393300389,1762437023629,-166.59,0.00041581,120]
[393300390,1762437023666,-166.59,0.00041681,120]
[393300391,1762437023703,-153.0,0.000417,120]
[393300392,1762437023739,-600.0,0.00041747,60]
[393300393,1762437023777,-166.59,0.00041781,120]
[393300394,1762437023813,-200.0,0.00041801,120]
[393300395,1762437023850,-166.59,0.00041881,120]
[393300396,1762437023884,-228.45356883,0.000419,120]
[393300397,1762437023919,-10159.53005088,0.000419,120]
[393300398,1762437023953,-180.76307225,0.000419,120]
[393300399,1762437023986,-163.42950572,0.000419,120]
[393300400,1762437024020,-380.47494993,0.000419,120]
[393300401,1762437024055,-190.20205685,0.000419,120]
[393300402,1762437024090,-166.59,0.00041981,120]
[393300403,1762437024125,-20000.0,0.00042,120]
[393300404,1762437024161,-200.0,0.00042045,120]
[393300405,1762437024198,-166.59,0.00042081,120]
[393300406,1762437024237,-200.0,0.00042122,120]
[393300407,1762437024274,-317.6347588,0.00042174,30]
[393300408,1762437024311,-166.59,0.00042181,120]
[393300409,1762437024351,-166.59,0.00042281,120]
[393300410,1762437024386,-600.0,0.00042295,60]
[393300411,1762437024420,-8383.4112942,0.000423,30]
[393300412,1762437024456,-200.0,0.00042319,120]
[393300413,1762437024493,-166.59,0.00042381,120]
[393300414,1762437024528,-201.0,0.0004239,60]
[393300415,1762437024564,-200.0,0.00042447,120]
[393300416,1762437024602,-166.59,0.00042481,120]
[393300417,1762437024638,-200.0,0.0004258,120]
[393300418,1762437024675,-166.59,0.00042581,120]
[393300419,1762437024709,-200.0,0.00042606,120]
[393300420,1762437024745,-166.59,0.00042681,120]
[393300421,1762437024780,-166.59,0.00042781,120]
[393300422,1762437024814,-200.0,0.00042794,120]
[393300423,1762437024850,-200.0,0.0004281,120]
[393300424,1762437024888,-166.59,0.00042881,120]
[393300425,1762437024926,-166.59,0.00042981,120]
[393300426,1762437024963,-166.59,0.00043081,120]
[393300427,1762437024999,-10159.53005088,0.000431,120]
[393300428,1762437025033,-500.0,0.00043151,30]
[393300429,1762437025069,-166.59,0.00043181,120]
[393300430,1762437025105,-1059.5986,0.0004322,30]
[393300431,1762437025146,-175.739,0.00043225,120]
[393300432,1762437025183,-209.3985,0.00043225,120]
[393300433,1762437025223,-166.59,0.00043281,120]
[393300434,1762437025258,-161.0,0.00043342,120]
[393300435,1762437025294,-166.59,0.00043381,120]
[393300436,1762437025329,-600.0,0.00043391,60]
[393300437,1762437025362,-267.8434,0.000434,120]
[393300438,1762437025395,-153.0,0.000434,120]
[393300439,1762437025427,-209.0,0.00043452,30]
[393300440,1762437025461,-166.59,0.00043481,120]
[393300441,1762437025494,-115370.71301928,0.000435,120]
[393300442,1762437025529,-1444.0,0.00043562,120]
[393300443,1762437025563,-166.59,0.00043581,120]
[393300444,1762437025598,-166.59,0.00043681,120]
[393300445,1762437025631,-300.0,0.00043726,30]
[393300446,1762437025668,-166.59,0.00043781,120]
[393300447,1762437025702,-421.0,0.000438,90]
[393300448,1762437025736,-228.9075,0.00043835,120]
[393300449,1762437025770,-999.0,0.00043835,120]
[393300450,1762437025807,-166.59,0.00043881,120]
[393300451,1762437025842,-166.59,0.00043981,120]
[393300452,1762437025875,-200.0,0.00044,120]
[393300453,1762437025910,-166.59,0.00044081,120]
[393300454,1762437025944,-166.59,0.00044181,120]
[393300455,1762437025978,-166.59,0.00044281,120]
[393300456,1762437026013,-166.59,0.00044381,120]
[393300457,1762437026048,-10159.53005088,0.000444,120]
[393300458,1762437026081,-166.59,0.00044481,120]
[393300459,1762437026117,-600.0,0.00044487,60]
[393300460,1762437026152,-166.59,0.00044581,120]
[393300461,1762437026185,-999.0,0.00044657,120]
[393300462,1762437026218,-166.59,0.00044681,120]
[393300463,1762437026251,-179.76630381,0.00044748,31]
[393300464,1762437026287,-203.0,0.0004478,66]
[393300465,1762437026323,-166.59,0.00044781,120]
[393300466,1762437026357,-167.46609919,0.00044881,120]
[393300467,1762437026389,-36000.0,0.0004489,120]
[393300468,1762437026421,-1000.0,0.00045,120]
[393300469,1762437026452,-1107.6390575,0.00045,120]
[393300470,1762437026582,-305.21796014,0.00045,120]
[393300471,1762437026617,-273.19310513,0.00045,120]
[393300472,1762437026650,-150.0,0.00045,120]
[393300473,1762437026682,-459.0,0.00045,120]
[393300474,1762437026715,-3000.0,0.00045,30]
[393300475,1762437026747,-200.0,0.00045,120]
[393300476,1762437026780,-2031.55530027,0.00045,120]
[393300477,1762437026815,-165.11547231,0.00045,120]
[393300478,1762437026848,-153.0,0.000451,120]
[393300479,1762437026882,-457.815,0.00045205,120]
[393300480,1762437026915,-500.0,0.0004537,40]
[393300481,1762437026947,-414.95481987,0.000454,120]
[393300482,1762437026979,-1005.84929115,0.00045479,120]
[393300483,1762437027012,-600.0,0.00045583,60]
[393300484,1762437027045,-267.8434,0.000458,120]
[393300485,1762437027081,-10159.53005088,0.000458,120]
[393300486,1762437027114,-376.29107437,0.000459,120]
[393300487,1762437027146,-1000.0,0.00046,120]
[393300488,1762437027179,-600.0,0.00046,120]
[393300489,1762437027213,-1136.17484129,0.00046,30]
[393300490,1762437027245,-300.0,0.00046466,40]
[393300491,1762437027277,-686.7225,0.00046575,120]
[393300492,1762437027524,151.0,0.0003,31]
[393300493,1762437027567,151.0,0.00037261,31]
[393300494,1762437027608,151.0,0.00037261,31]
[393300495,1762437027649,151.0,0.00037261,31]
[393300496,1762437027686,151.0,0.00037261,31]
[393300497,1762437027726,151.0,0.0003,31]
[393300498,1762437027761,151.0,0.00037261,31]
[393300499,1762437027799,151.0,0.00037261,31]
[393300500,1762437027837,151.0,0.00037261,31]
[393300501,1762437027874,151.0,0.00037261,31]
[393300502,1762437027915,151.0,0.0003,31]
[393300531,1762437032164,-253.58348024,0.00023573,2]
[393300533,1762437032174,-402.0,0.00023573,2]
[393300534,1762437032183,-500.0,0.00023673,2]
[393300535,1762437032192,-150.0,0.00023676,2]
[393300536,1762437032201,-495.14691444,0.0002368,2]
[393300537,1762437032210,-464.23040419,0.0002368,2]
[393300538,1762437032220,-535.58,0.0002368,10]
[393300539,1762437032229,-446.32,0.0002368,10]
[393300540,1762437032238,-160.0,0.00023688,2]
[393300541,1762437032247,-300.0,0.00023688,2]
[393300542,1762437032256,-893.0,0.00023688,2]
[393300543,1762437032265,-500.0,0.00023688,2]
[393300544,1762437032275,-500.0,0.00023688,2]
[393300545,1762437032285,-175.8915,0.00023688,2]
[393300546,1762437032294,-39251.092501,0.00023689,2]
[393300547,1762437032303,-159.28115465,0.00023689,2]
[393300548,1762437032313,-685000.0,0.0002369,2]
[393300549,1762437032323,-213.38,0.000237,2]
[393300550,1762437032331,-213.38,0.000237,2]
[393300551,1762437032340,-503.57011585,0.00023773,2]
[393300552,1762437032349,-500.0,0.00023787,2]
[393300553,1762437032358,-1000.0,0.00023789,2]
[393300554,1762437032368,-963.12277454,0.00023789,2]
[393300555,1762437032377,-213.38,0.000238,2]
[393300556,1762437032386,-213.38,0.000238,2]
[393300557,1762437032395,-700.0,0.000239,2]
[393300558,1762437032404,-213.38,0.000239,2]
[393300559,1762437032413,-213.38,0.000239,2]
[393300560,1762437032422,-500.0,0.00023989,2]
[393300561,1762437032431,-500.0,0.00023989,2]
[393300562,1762437032440,-500.0,0.00023989,2]
[393300563,1762437032449,-213.85030408,0.00023999,2]
[393300564,1762437032458,-213.38,0.00024,2]
[393300565,1762437032468,-213.38,0.00024,2]
[393300566,1762437032477,-213.38,0.000241,2]
[393300567,1762437032486,-213.38,0.000241,2]
[393300568,1762437032495,-500.0,0.00024142,2]
[393300569,1762437032505,-46572.27768154,0.00024142,2]
[393300570,1762437032514,-151.0,0.00024142,7]
[393300571,1762437032523,-151.0,0.00024142,7]
[393300572,1762437032532,-151.0,0.00024142,7]
[393300573,1762437032541,-218.23464,0.00024142,7]
[393300574,1762437032550,-151.0,0.00024142,7]
[393300575,1762437032559,-151.0,0.00024142,7]
[393300576,1762437032568,-151.0,0.00024142,7]
[393300577,1762437032577,-151.0,0.00024142,7]